[Event "Titled Tuesday Blitz February 01 A 2022"]
[White "Maevsky, Nikolay"]
[Black "Urazayev, Arystanbek"]
[WhiteFideId "4198220"]
[BlackFideId "13709810"]
[WhiteElo "2104"]
[BlackElo "2321"]
[Result "0-1"]
[Round "06"]
[TimeControl "180+1"]
[Date "2022.02.01"]
[WhiteClock "0:00:02"]
[BlackClock "0:00:04"]

1. d4 {[%clk 0:03:00]}  d5 {[%clk 0:03:00]} 2. Nf3 {[%clk 0:03:01]}  e6 {[%clk 0:03:00]} 3. e3 {[%clk 0:03:01]}  Nf6 {[%clk 0:02:56]} 4. Bd3 {[%clk 0:03:01]}  Nbd7 {[%clk 0:02:56]} 5. O-O {[%clk 0:02:59]}  Bd6 {[%clk 0:02:57]} 6. b3 {[%clk 0:02:58]}  e5 {[%clk 0:02:56]} 7. dxe5 {[%clk 0:02:56]}  Nxe5 {[%clk 0:02:57]} 8. Be2 {[%clk 0:02:54]}  Nxf3+ {[%clk 0:02:54]} 9. Bxf3 {[%clk 0:02:54]}  Be5 {[%clk 0:02:55]} 10. c3 {[%clk 0:02:54]}  O-O {[%clk 0:02:55]} 11. Bb2 {[%clk 0:02:53]}  Qd6 {[%clk 0:02:55]} 12. g3 {[%clk 0:02:52]}  Bh3 {[%clk 0:02:55]} 13. Re1 {[%clk 0:02:52]}  Rfe8 {[%clk 0:02:54]} 14. Nd2 {[%clk 0:02:53]}  Rad8 {[%clk 0:02:52]} 15. Qc2 {[%clk 0:02:49]}  h5 {[%clk 0:02:39]} 16. Rad1 {[%clk 0:02:48]}  Qe6 {[%clk 0:02:36]} 17. c4 {[%clk 0:02:46]}  Bxb2 {[%clk 0:02:22]} 18. Qxb2 {[%clk 0:02:41]}  d4 {[%clk 0:02:19]} 19. Qa1 {[%clk 0:02:05]}  d3 {[%clk 0:02:09]} 20. e4 {[%clk 0:01:59]}  h4 {[%clk 0:01:55]} 21. Qc3 {[%clk 0:01:56]}  Ng4 {[%clk 0:01:33]} 22. Nf1 {[%clk 0:01:18]}  Ne5 {[%clk 0:01:25]} 23. Bh1 {[%clk 0:01:18]}  Bg4 {[%clk 0:00:58]} 24. Rd2 {[%clk 0:01:03]}  Bf3 {[%clk 0:00:56]} 25. Re3 {[%clk 0:00:58]}  Qf6 {[%clk 0:00:43]} 26. Bg2 {[%clk 0:00:32]}  Bxg2 {[%clk 0:00:25]} 27. Kxg2 {[%clk 0:00:32]}  h3+ {[%clk 0:00:25]} 28. Kxh3 {[%clk 0:00:32]}  Qh6+ {[%clk 0:00:05]} 29. Kg2 {[%clk 0:00:32]}  Rd6 {[%clk 0:00:04]} 30. h3 {[%clk 0:00:28]}  Red8 {[%clk 0:00:03]} 31. f4 {[%clk 0:00:22]}  Nc6 {[%clk 0:00:03]} 32. Rexd3 {[%clk 0:00:20]}  Qe6 {[%clk 0:00:04]} 33. e5 {[%clk 0:00:19]}  Rxd3 {[%clk 0:00:01]} 34. Rxd3 {[%clk 0:00:19]}  Re8 {[%clk 0:00:02]} 35. Ne3 {[%clk 0:00:14]}  Ne7 {[%clk 0:00:03]} 36. Nd5 {[%clk 0:00:12]}  Qc6 {[%clk 0:00:03]} 37. Kh2 {[%clk 0:00:11]}  Ng6 {[%clk 0:00:04]} 38. Qd2 {[%clk 0:00:09]}  Nf8 {[%clk 0:00:03]} 39. Ne3 {[%clk 0:00:08]}  Qc5 {[%clk 0:00:03]} 40. Rd5 {[%clk 0:00:08]}  Qa3 {[%clk 0:00:03]} 41. Ng4 {[%clk 0:00:06]}  c6 {[%clk 0:00:03]} 42. Rd6 {[%clk 0:00:04]}  Ne6 {[%clk 0:00:03]} 43. f5 {[%clk 0:00:04]}  Nc5 {[%clk 0:00:04]} 44. f6 {[%clk 0:00:04]}  Ne4 {[%clk 0:00:04]} 45. Qe2 {[%clk 0:00:03]}  Nxd6 {[%clk 0:00:05]} 46. Nh6+ {[%clk 0:00:02]}  Kf8 {[%clk 0:00:04]} 0-1


[Site "https://www.chess.com"]

[Event "Titled Tuesday Blitz February 01 A 2022"]
[White "Maksimovic, Bojan"]
[Black "Grandelius, Nils"]
[WhiteFideId "14408120"]
[BlackFideId "1710400"]
[WhiteElo "2450"]
[BlackElo "2617"]
[Result "0-1"]
[Round "06"]
[TimeControl "180+1"]
[Date "2022.02.01"]
[WhiteClock "0:00:47"]
[BlackClock "0:02:27"]

1. Nf3 {[%clk 0:03:00]}  d5 {[%clk 0:02:59]} 2. e3 {[%clk 0:03:00]}  e6 {[%clk 0:02:56]} 3. b3 {[%clk 0:02:59]}  Be7 {[%clk 0:02:52]} 4. Bb2 {[%clk 0:02:59]}  Bf6 {[%clk 0:02:53]} 5. d4 {[%clk 0:02:57]}  c5 {[%clk 0:02:53]} 6. c4 {[%clk 0:02:44]}  Ne7 {[%clk 0:02:50]} 7. cxd5 {[%clk 0:02:38]}  Nxd5 {[%clk 0:02:50]} 8. e4 {[%clk 0:02:27]}  Nb4 {[%clk 0:02:50]} 9. e5 {[%clk 0:02:25]}  Be7 {[%clk 0:02:50]} 10. a3 {[%clk 0:02:03]}  N4c6 {[%clk 0:02:50]} 11. Nc3 {[%clk 0:02:03]}  Nxd4 {[%clk 0:02:45]} 12. Nxd4 {[%clk 0:01:58]}  cxd4 {[%clk 0:02:46]} 13. Ne4 {[%clk 0:01:54]}  Qa5+ {[%clk 0:02:40]} 14. b4 {[%clk 0:01:29]}  Qxe5 {[%clk 0:02:40]} 15. Bd3 {[%clk 0:01:29]}  f5 {[%clk 0:02:39]} 16. Bxd4 {[%clk 0:01:29]}  Qd5 {[%clk 0:02:29]} 17. Nc3 {[%clk 0:01:10]}  Qxg2 {[%clk 0:02:28]} 18. Kd2 {[%clk 0:00:49]}  Nc6 {[%clk 0:02:27]} 19. Rg1 {[%clk 0:00:47]}  Bg5+ {[%clk 0:02:27]} 0-1


[Site "https://www.chess.com"]

[Event "Titled Tuesday Blitz February 01 A 2022"]
[White "Mladenovic, Stefan"]
[Black "Grischuk, Alexander"]
[WhiteFideId "942227"]
[BlackFideId "4126025"]
[WhiteElo "2355"]
[BlackElo "2762"]
[Result "0-1"]
[Round "06"]
[TimeControl "180+1"]
[Date "2022.02.01"]
[WhiteClock "0:00:02"]
[BlackClock "0:00:51"]

1. d4 {[%clk 0:03:00]}  Nf6 {[%clk 0:02:59]} 2. Nf3 {[%clk 0:03:00]}  g6 {[%clk 0:02:59]} 3. Bf4 {[%clk 0:03:00]}  Bg7 {[%clk 0:03:00]} 4. e3 {[%clk 0:03:00]}  O-O {[%clk 0:03:00]} 5. Be2 {[%clk 0:03:00]}  c5 {[%clk 0:02:59]} 6. c3 {[%clk 0:02:58]}  d6 {[%clk 0:02:54]} 7. O-O {[%clk 0:02:58]}  Nh5 {[%clk 0:02:52]} 8. Bg5 {[%clk 0:02:57]}  h6 {[%clk 0:02:52]} 9. Bh4 {[%clk 0:02:57]}  g5 {[%clk 0:02:47]} 10. Nfd2 {[%clk 0:02:58]}  cxd4 {[%clk 0:02:42]} 11. cxd4 {[%clk 0:02:55]}  Nf4 {[%clk 0:02:42]} 12. Bg3 {[%clk 0:02:48]}  Nxe2+ {[%clk 0:02:40]} 13. Qxe2 {[%clk 0:02:49]}  Qb6 {[%clk 0:02:29]} 14. Nc4 {[%clk 0:02:42]}  Qa6 {[%clk 0:02:28]} 15. Qc2 {[%clk 0:02:03]}  Be6 {[%clk 0:02:25]} 16. Nca3 {[%clk 0:01:56]}  Nd7 {[%clk 0:02:19]} 17. Nc3 {[%clk 0:01:56]}  Rac8 {[%clk 0:02:20]} 18. Qd2 {[%clk 0:01:53]}  Nf6 {[%clk 0:02:15]} 19. f4 {[%clk 0:01:48]}  Nh5 {[%clk 0:02:05]} 20. Bf2 {[%clk 0:01:42]}  f5 {[%clk 0:01:48]} 21. fxg5 {[%clk 0:01:03]}  hxg5 {[%clk 0:01:49]} 22. e4 {[%clk 0:01:03]}  f4 {[%clk 0:01:49]} 23. Rae1 {[%clk 0:01:02]}  Bf7 {[%clk 0:01:44]} 24. e5 {[%clk 0:01:01]}  dxe5 {[%clk 0:01:42]} 25. dxe5 {[%clk 0:01:01]}  Rfd8 {[%clk 0:01:34]} 26. Qe2 {[%clk 0:01:01]}  Qxe2 {[%clk 0:01:33]} 27. Rxe2 {[%clk 0:01:02]}  a6 {[%clk 0:01:30]} 28. Ne4 {[%clk 0:00:51]}  g4 {[%clk 0:01:23]} 29. Bh4 {[%clk 0:00:50]}  Rc7 {[%clk 0:01:17]} 30. Nf2 {[%clk 0:00:33]}  Be6 {[%clk 0:01:14]} 31. Bg5 {[%clk 0:00:23]}  b5 {[%clk 0:01:11]} 32. b3 {[%clk 0:00:20]}  Rd5 {[%clk 0:01:07]} 33. h3 {[%clk 0:00:12]}  Ng3 {[%clk 0:01:06]} 34. Ree1 {[%clk 0:00:08]}  Nxf1 {[%clk 0:01:06]} 35. Kxf1 {[%clk 0:00:08]}  Rxe5 {[%clk 0:01:04]} 36. Bxf4 {[%clk 0:00:06]}  Rxe1+ {[%clk 0:01:04]} 37. Kxe1 {[%clk 0:00:07]}  Rc1+ {[%clk 0:01:04]} 38. Bxc1 {[%clk 0:00:07]}  g3 {[%clk 0:00:59]} 39. Ne4 {[%clk 0:00:05]}  Be5 {[%clk 0:01:00]} 40. Kf1 {[%clk 0:00:03]}  Bf5 {[%clk 0:00:58]} 41. Ng5 {[%clk 0:00:03]}  Bd3+ {[%clk 0:00:57]} 42. Ke1 {[%clk 0:00:02]}  Bd6 {[%clk 0:00:51]} 0-1


[Site "https://www.chess.com"]

[Event "Titled Tuesday Blitz February 01 A 2022"]
[White "Nesterov, Arseniy"]
[Black "Hayrapetyan, Hovik"]
[WhiteFideId "24198455"]
[BlackFideId "13302639"]
[WhiteElo "2904"]
[BlackElo "2800"]
[Result "0-1"]
[Round "06"]
[TimeControl "180+1"]
[Date "2022.02.01"]
[WhiteClock "0:00:04"]
[BlackClock "0:00:06"]

1. d4 {[%clk 0:03:00]}  Nf6 {[%clk 0:02:56]} 2. c4 {[%clk 0:03:00]}  g6 {[%clk 0:02:56]} 3. Nc3 {[%clk 0:03:00]}  Bg7 {[%clk 0:02:56]} 4. e4 {[%clk 0:03:01]}  O-O {[%clk 0:02:57]} 5. Be2 {[%clk 0:03:01]}  d6 {[%clk 0:02:57]} 6. Be3 {[%clk 0:03:02]}  Nc6 {[%clk 0:02:57]} 7. d5 {[%clk 0:03:01]}  Nb8 {[%clk 0:02:56]} 8. Nf3 {[%clk 0:03:01]}  Bg4 {[%clk 0:02:50]} 9. O-O {[%clk 0:03:00]}  c6 {[%clk 0:02:50]} 10. h3 {[%clk 0:02:53]}  Bxf3 {[%clk 0:02:49]} 11. Bxf3 {[%clk 0:02:54]}  cxd5 {[%clk 0:02:47]} 12. exd5 {[%clk 0:02:54]}  Nbd7 {[%clk 0:02:45]} 13. Be2 {[%clk 0:02:53]}  Qa5 {[%clk 0:02:39]} 14. Rc1 {[%clk 0:02:50]}  Rac8 {[%clk 0:02:37]} 15. Re1 {[%clk 0:02:43]}  a6 {[%clk 0:02:28]} 16. a4 {[%clk 0:02:40]}  Qb4 {[%clk 0:02:25]} 17. b3 {[%clk 0:02:36]}  Nc5 {[%clk 0:02:22]} 18. Bxc5 {[%clk 0:02:24]}  Rxc5 {[%clk 0:02:15]} 19. Na2 {[%clk 0:02:13]}  Qa3 {[%clk 0:02:09]} 20. Qc2 {[%clk 0:02:09]}  Rc7 {[%clk 0:02:03]} 21. Nc3 {[%clk 0:01:31]}  Nd7 {[%clk 0:02:00]} 22. Bf1 {[%clk 0:01:24]}  Nc5 {[%clk 0:01:56]} 23. Rb1 {[%clk 0:01:24]}  Bxc3 {[%clk 0:01:46]} 24. Qxc3 {[%clk 0:01:23]}  Re8 {[%clk 0:01:23]} 25. Re3 {[%clk 0:01:19]}  Nd7 {[%clk 0:01:20]} 26. Rbe1 {[%clk 0:01:12]}  Nf6 {[%clk 0:01:17]} 27. Qd4 {[%clk 0:01:11]}  Qc5 {[%clk 0:01:16]} 28. Qd2 {[%clk 0:01:08]}  a5 {[%clk 0:01:15]} 29. g3 {[%clk 0:01:06]}  h5 {[%clk 0:01:10]} 30. h4 {[%clk 0:01:04]}  Ng4 {[%clk 0:01:04]} 31. Re4 {[%clk 0:01:02]}  Nf6 {[%clk 0:01:04]} 32. R4e2 {[%clk 0:00:58]}  b6 {[%clk 0:01:02]} 33. Bh3 {[%clk 0:00:55]}  Kg7 {[%clk 0:01:01]} 34. Kg2 {[%clk 0:00:54]}  Ra7 {[%clk 0:01:00]} 35. Qd3 {[%clk 0:00:54]}  Rc7 {[%clk 0:00:58]} 36. f4 {[%clk 0:00:53]}  Ra7 {[%clk 0:00:43]} 37. f5 {[%clk 0:00:50]}  b5 {[%clk 0:00:43]} 38. axb5 {[%clk 0:00:44]}  a4 {[%clk 0:00:43]} 39. fxg6 {[%clk 0:00:43]}  fxg6 {[%clk 0:00:44]} 40. bxa4 {[%clk 0:00:43]}  Kf7 {[%clk 0:00:39]} 41. Be6+ {[%clk 0:00:35]}  Kg7 {[%clk 0:00:39]} 42. a5 {[%clk 0:00:24]}  Rxa5 {[%clk 0:00:39]} 43. Bd7 {[%clk 0:00:24]}  Ra3 {[%clk 0:00:19]} 44. Qxa3 {[%clk 0:00:20]}  Qxa3 {[%clk 0:00:17]} 45. Bxe8 {[%clk 0:00:21]}  Ng4 {[%clk 0:00:08]} 46. Rxe7+ {[%clk 0:00:14]}  Kh6 {[%clk 0:00:08]} 47. Bd7 {[%clk 0:00:07]}  Ne5 {[%clk 0:00:08]} 48. R7xe5 {[%clk 0:00:07]}  dxe5 {[%clk 0:00:08]} 49. Be6 {[%clk 0:00:04]}  Qc3 {[%clk 0:00:07]} 50. Re4 {[%clk 0:00:03]}  Qc2+ {[%clk 0:00:07]} 51. Kf3 {[%clk 0:00:03]}  Qd3+ {[%clk 0:00:07]} 52. Re3 {[%clk 0:00:04]}  Qxc4 {[%clk 0:00:05]} 53. b6 {[%clk 0:00:04]}  e4+ {[%clk 0:00:03]} 54. Rxe4 {[%clk 0:00:04]}  Qb3+ {[%clk 0:00:04]} 55. Kf4 {[%clk 0:00:03]}  Qxb6 {[%clk 0:00:04]} 56. Kf3 {[%clk 0:00:03]}  Qb3+ {[%clk 0:00:04]} 57. Re3 {[%clk 0:00:04]}  Qb4 {[%clk 0:00:05]} 58. Rd3 {[%clk 0:00:04]}  Qc4 {[%clk 0:00:05]} 59. Ke3 {[%clk 0:00:04]}  Qc1+ {[%clk 0:00:05]} 60. Kd4 {[%clk 0:00:04]}  Qb2+ {[%clk 0:00:05]} 61. Ke4 {[%clk 0:00:04]}  Qe2+ {[%clk 0:00:05]} 62. Kd4 {[%clk 0:00:04]}  Qb2+ {[%clk 0:00:05]} 63. Rc3 {[%clk 0:00:05]}  Qd2+ {[%clk 0:00:05]} 64. Kc4 {[%clk 0:00:06]}  Kg7 {[%clk 0:00:05]} 65. Bd7 {[%clk 0:00:04]}  Kf6 {[%clk 0:00:04]} 66. Bc6 {[%clk 0:00:03]}  Ke5 {[%clk 0:00:04]} 67. Rb3 {[%clk 0:00:04]}  Qd4+ {[%clk 0:00:04]} 68. Kb5 {[%clk 0:00:04]}  Kd6 {[%clk 0:00:04]} 69. Rb4 {[%clk 0:00:03]}  Qc5+ {[%clk 0:00:05]} 70. Ka4 {[%clk 0:00:03]}  Qc2+ {[%clk 0:00:05]} 71. Rb3 {[%clk 0:00:04]}  Kc5 {[%clk 0:00:05]} 72. Bb5 {[%clk 0:00:03]}  Kxd5 {[%clk 0:00:04]} 73. Kb4 {[%clk 0:00:03]}  Qd2+ {[%clk 0:00:03]} 74. Ka4 {[%clk 0:00:04]}  Kc5 {[%clk 0:00:04]} 75. Bd3 {[%clk 0:00:03]}  Qc1 {[%clk 0:00:03]} 76. Ra3 {[%clk 0:00:02]}  Qd1+ {[%clk 0:00:03]} 77. Rb3 {[%clk 0:00:02]}  Qa1+ {[%clk 0:00:03]} 78. Ra3 {[%clk 0:00:02]}  Qd4+ {[%clk 0:00:04]} 79. Kb3 {[%clk 0:00:02]}  Qxd3+ {[%clk 0:00:04]} 80. Kb2 {[%clk 0:00:03]}  Qd2+ {[%clk 0:00:04]} 81. Kb1 {[%clk 0:00:04]}  Qd1+ {[%clk 0:00:04]} 82. Kb2 {[%clk 0:00:04]}  Qe2+ {[%clk 0:00:05]} 83. Kb1 {[%clk 0:00:04]}  Kb4 {[%clk 0:00:05]} 84. Ra7 {[%clk 0:00:03]}  Qf1+ {[%clk 0:00:05]} 85. Kc2 {[%clk 0:00:03]}  Qf2+ {[%clk 0:00:05]} 86. Kd3 {[%clk 0:00:04]}  Qxa7 {[%clk 0:00:06]} 0-1


[Site "https://www.chess.com"]

[Event "Titled Tuesday Blitz February 01 A 2022"]
[White "Onyshchuk, Volodymyr"]
[Black "Dubov, Daniil"]
[WhiteFideId "14114038"]
[BlackFideId "24126055"]
[WhiteElo "2847"]
[BlackElo "3071"]
[Result "1-0"]
[Round "06"]
[TimeControl "180+1"]
[Date "2022.02.01"]
[WhiteClock "0:01:45"]
[BlackClock "0:00:04"]

1. e4 {[%clk 0:02:58]}  c6 {[%clk 0:03:00]} 2. d4 {[%clk 0:02:54]}  d5 {[%clk 0:03:01]} 3. Nc3 {[%clk 0:02:54]}  dxe4 {[%clk 0:03:01]} 4. Nxe4 {[%clk 0:02:55]}  Nf6 {[%clk 0:03:02]} 5. Nxf6+ {[%clk 0:02:54]}  exf6 {[%clk 0:03:03]} 6. c3 {[%clk 0:02:54]}  Bd6 {[%clk 0:03:02]} 7. Bd3 {[%clk 0:02:54]}  Nd7 {[%clk 0:02:59]} 8. Ne2 {[%clk 0:02:51]}  Nf8 {[%clk 0:02:59]} 9. Bf4 {[%clk 0:02:49]}  Ng6 {[%clk 0:02:58]} 10. Bg3 {[%clk 0:02:45]}  O-O {[%clk 0:02:58]} 11. Qc2 {[%clk 0:02:44]}  Re8 {[%clk 0:02:57]} 12. O-O-O {[%clk 0:02:43]}  Be6 {[%clk 0:02:55]} 13. h4 {[%clk 0:02:36]}  Bxg3 {[%clk 0:02:41]} 14. Nxg3 {[%clk 0:02:36]}  Qa5 {[%clk 0:02:40]} 15. h5 {[%clk 0:02:29]}  Nf4 {[%clk 0:02:40]} 16. Bxh7+ {[%clk 0:02:27]}  Kh8 {[%clk 0:02:41]} 17. a3 {[%clk 0:02:13]}  Qb6 {[%clk 0:02:26]} 18. Qd2 {[%clk 0:02:04]}  Qc7 {[%clk 0:02:01]} 19. Be4 {[%clk 0:02:01]}  Bd5 {[%clk 0:01:41]} 20. Rh4 {[%clk 0:01:54]}  Bxe4 {[%clk 0:01:12]} 21. Rxf4 {[%clk 0:01:52]}  Bh7 {[%clk 0:01:13]} 22. h6 {[%clk 0:01:49]}  g5 {[%clk 0:00:45]} 23. Rxf6 {[%clk 0:01:48]}  Qb6 {[%clk 0:00:13]} 24. Qxg5 {[%clk 0:01:45]}  Rg8 {[%clk 0:00:04]} 25. Qe5 {[%clk 0:01:45]}  Rae8 {[%clk 0:00:04]} 26. Re6+ {[%clk 0:01:45]}  f6 {[%clk 0:00:03]} 27. Qxf6+ {[%clk 0:01:45]}  Rg7 {[%clk 0:00:04]} 28. Qxg7# {[%clk 0:01:45]} 1-0


[Site "https://www.chess.com"]

[Event "Titled Tuesday Blitz February 01 A 2022"]
[White "Postny, Evgeny"]
[Black "Kouskoutis, Georgios-Alexandros"]
[WhiteFideId "2804344"]
[BlackFideId "4234049"]
[WhiteElo "2483"]
[BlackElo "2130"]
[Result "1-0"]
[Round "06"]
[TimeControl "180+1"]
[Date "2022.02.01"]
[WhiteClock "0:00:56"]
[BlackClock "0:00:01"]

1. e4 {[%clk 0:03:00]}  c5 {[%clk 0:02:59]} 2. Nf3 {[%clk 0:03:00]}  e6 {[%clk 0:02:58]} 3. d4 {[%clk 0:03:00]}  cxd4 {[%clk 0:02:59]} 4. Nxd4 {[%clk 0:03:01]}  Nc6 {[%clk 0:02:59]} 5. Nb5 {[%clk 0:02:59]}  d6 {[%clk 0:02:57]} 6. c4 {[%clk 0:02:59]}  Nf6 {[%clk 0:02:48]} 7. N5c3 {[%clk 0:02:59]}  Be7 {[%clk 0:02:45]} 8. Be2 {[%clk 0:02:59]}  O-O {[%clk 0:02:45]} 9. O-O {[%clk 0:03:00]}  b6 {[%clk 0:02:43]} 10. Be3 {[%clk 0:02:58]}  Bb7 {[%clk 0:02:43]} 11. Nd2 {[%clk 0:02:45]}  Ne5 {[%clk 0:02:33]} 12. h3 {[%clk 0:02:39]}  Rc8 {[%clk 0:02:08]} 13. f4 {[%clk 0:02:33]}  Ned7 {[%clk 0:02:08]} 14. Bf3 {[%clk 0:02:28]}  Qc7 {[%clk 0:01:49]} 15. Rc1 {[%clk 0:02:25]}  Qb8 {[%clk 0:01:46]} 16. Qe2 {[%clk 0:02:23]}  Qa8 {[%clk 0:01:39]} 17. Bf2 {[%clk 0:02:18]}  Rfe8 {[%clk 0:01:19]} 18. e5 {[%clk 0:02:17]}  Bxf3 {[%clk 0:01:11]} 19. Nxf3 {[%clk 0:02:17]}  Nh5 {[%clk 0:01:03]} 20. Qd2 {[%clk 0:02:10]}  Nc5 {[%clk 0:00:16]} 21. exd6 {[%clk 0:01:55]}  Red8 {[%clk 0:00:15]} 22. Bxc5 {[%clk 0:01:52]}  bxc5 {[%clk 0:00:06]} 23. d7 {[%clk 0:01:50]}  Rc7 {[%clk 0:00:05]} 24. Ne5 {[%clk 0:01:43]}  f6 {[%clk 0:00:04]} 25. Nb5 {[%clk 0:01:41]}  Rb7 {[%clk 0:00:03]} 26. Qd1 {[%clk 0:01:13]}  Ng3 {[%clk 0:00:02]} 27. Qg4 {[%clk 0:01:13]}  fxe5 {[%clk 0:00:01]} 28. Qxg3 {[%clk 0:01:06]}  exf4 {[%clk 0:00:01]} 29. Qxf4 {[%clk 0:01:06]}  Rbxd7 {[%clk 0:00:01]} 30. Qf7+ {[%clk 0:01:04]}  Kh8 {[%clk 0:00:01]} 31. Qxe6 {[%clk 0:01:01]}  Bg5 {[%clk 0:00:02]} 32. Rce1 {[%clk 0:00:58]}  Rd2 {[%clk 0:00:01]} 33. Rf3 {[%clk 0:00:56]} 1-0


[Site "https://www.chess.com"]

[Event "Titled Tuesday Blitz February 01 A 2022"]
[White "Pranav, V"]
[Black "Santos Ruiz, Miguel"]
[WhiteFideId "25060783"]
[BlackFideId "22291482"]
[WhiteElo "2349"]
[BlackElo "2486"]
[Result "1-0"]
[Round "06"]
[TimeControl "180+1"]
[Date "2022.02.01"]
[WhiteClock "0:00:05"]
[BlackClock "0:00:03"]

1. e4 {[%clk 0:03:00]}  c5 {[%clk 0:02:57]} 2. Nf3 {[%clk 0:03:00]}  Nc6 {[%clk 0:02:56]} 3. Bb5 {[%clk 0:03:00]}  g6 {[%clk 0:02:52]} 4. O-O {[%clk 0:03:00]}  Bg7 {[%clk 0:02:53]} 5. c3 {[%clk 0:03:00]}  e5 {[%clk 0:02:46]} 6. d3 {[%clk 0:02:58]}  Nge7 {[%clk 0:02:46]} 7. a3 {[%clk 0:02:56]}  O-O {[%clk 0:02:44]} 8. b4 {[%clk 0:02:56]}  d5 {[%clk 0:02:43]} 9. bxc5 {[%clk 0:02:50]}  dxe4 {[%clk 0:02:42]} 10. dxe4 {[%clk 0:02:51]}  Qa5 {[%clk 0:02:41]} 11. a4 {[%clk 0:02:38]}  Rd8 {[%clk 0:02:38]} 12. Qb3 {[%clk 0:02:34]}  Be6 {[%clk 0:02:34]} 13. Bc4 {[%clk 0:02:33]}  Bxc4 {[%clk 0:02:33]} 14. Qxc4 {[%clk 0:02:34]}  h6 {[%clk 0:02:27]} 15. Be3 {[%clk 0:02:31]}  Rd7 {[%clk 0:02:16]} 16. Nbd2 {[%clk 0:02:28]}  Rad8 {[%clk 0:02:16]} 17. Nb3 {[%clk 0:02:28]}  Qc7 {[%clk 0:02:16]} 18. a5 {[%clk 0:02:28]}  a6 {[%clk 0:02:12]} 19. h3 {[%clk 0:02:22]}  Qc8 {[%clk 0:01:52]} 20. Qe2 {[%clk 0:02:07]}  Kh7 {[%clk 0:01:50]} 21. Nfd2 {[%clk 0:02:03]}  Rd3 {[%clk 0:01:39]} 22. Rfc1 {[%clk 0:01:58]}  Qe6 {[%clk 0:01:37]} 23. Rab1 {[%clk 0:01:39]}  f5 {[%clk 0:01:35]} 24. exf5 {[%clk 0:01:38]}  gxf5 {[%clk 0:01:33]} 25. Nf1 {[%clk 0:01:36]}  Ng6 {[%clk 0:01:28]} 26. Bd2 {[%clk 0:01:29]}  e4 {[%clk 0:01:23]} 27. Nd4 {[%clk 0:01:22]}  Qd5 {[%clk 0:00:50]} 28. Nxc6 {[%clk 0:00:50]}  bxc6 {[%clk 0:00:48]} 29. c4 {[%clk 0:00:40]}  Rxd2 {[%clk 0:00:34]} 30. Nxd2 {[%clk 0:00:32]}  Qxd2 {[%clk 0:00:35]} 31. Qh5 {[%clk 0:00:33]}  e3 {[%clk 0:00:28]} 32. fxe3 {[%clk 0:00:24]}  Qxe3+ {[%clk 0:00:28]} 33. Kh1 {[%clk 0:00:24]}  Rd2 {[%clk 0:00:28]} 34. Rg1 {[%clk 0:00:15]}  Qe4 {[%clk 0:00:19]} 35. Rb7 {[%clk 0:00:12]}  Kh8 {[%clk 0:00:14]} 36. Qxg6 {[%clk 0:00:10]}  Qe5 {[%clk 0:00:10]} 37. Ra7 {[%clk 0:00:09]}  Rd8 {[%clk 0:00:10]} 38. Rxa6 {[%clk 0:00:08]}  Qf4 {[%clk 0:00:09]} 39. Ra7 {[%clk 0:00:08]}  Rg8 {[%clk 0:00:09]} 40. Rf7 {[%clk 0:00:06]}  Qe3 {[%clk 0:00:07]} 41. Qxf5 {[%clk 0:00:06]}  Qg3 {[%clk 0:00:05]} 42. a6 {[%clk 0:00:06]}  Qe3 {[%clk 0:00:04]} 43. a7 {[%clk 0:00:06]}  Qa3 {[%clk 0:00:04]} 44. Rb7 {[%clk 0:00:06]}  Qg3 {[%clk 0:00:03]} 45. Rb8 {[%clk 0:00:06]}  Rxb8 {[%clk 0:00:03]} 46. axb8=Q+ {[%clk 0:00:07]}  Qxb8 {[%clk 0:00:03]} 47. Rd1 {[%clk 0:00:05]}  Qe8 {[%clk 0:00:02]} 48. Qd7 {[%clk 0:00:04]}  Qe2 {[%clk 0:00:02]} 49. Qd8+ {[%clk 0:00:04]}  Kh7 {[%clk 0:00:02]} 50. Qd3+ {[%clk 0:00:05]}  Qxd3 {[%clk 0:00:03]} 51. Rxd3 {[%clk 0:00:05]} 1-0


[Site "https://www.chess.com"]

[Event "Titled Tuesday Blitz February 01 A 2022"]
[White "Rustemov, Alexander"]
[Black "Kozlov, Gennady"]
[WhiteFideId "4119002"]
[BlackFideId "4191668"]
[WhiteElo "2779"]
[BlackElo "2392"]
[Result "1-0"]
[Round "06"]
[TimeControl "180+1"]
[Date "2022.02.01"]
[WhiteClock "0:00:17"]
[BlackClock "0:00:27"]

1. d4 {[%clk 0:03:00]}  Nf6 {[%clk 0:02:59]} 2. c4 {[%clk 0:03:00]}  e6 {[%clk 0:02:59]} 3. Nf3 {[%clk 0:02:59]}  b6 {[%clk 0:02:58]} 4. a3 {[%clk 0:02:58]}  Bb7 {[%clk 0:02:59]} 5. Nc3 {[%clk 0:02:58]}  Be7 {[%clk 0:02:59]} 6. Qc2 {[%clk 0:02:52]}  d5 {[%clk 0:02:58]} 7. cxd5 {[%clk 0:02:50]}  exd5 {[%clk 0:02:59]} 8. Bg5 {[%clk 0:02:48]}  O-O {[%clk 0:02:57]} 9. e3 {[%clk 0:02:48]}  c5 {[%clk 0:02:56]} 10. Bd3 {[%clk 0:02:47]}  h6 {[%clk 0:02:56]} 11. Bh4 {[%clk 0:02:46]}  Nbd7 {[%clk 0:02:54]} 12. O-O {[%clk 0:02:46]}  c4 {[%clk 0:02:53]} 13. Bf5 {[%clk 0:02:43]}  a6 {[%clk 0:02:50]} 14. a4 {[%clk 0:02:41]}  Re8 {[%clk 0:02:42]} 15. b3 {[%clk 0:02:37]}  Nf8 {[%clk 0:02:19]} 16. Rfb1 {[%clk 0:02:29]}  g6 {[%clk 0:02:18]} 17. Bxf6 {[%clk 0:02:22]}  Bxf6 {[%clk 0:02:16]} 18. Bh3 {[%clk 0:02:22]}  Ne6 {[%clk 0:02:04]} 19. g3 {[%clk 0:02:09]}  Rc8 {[%clk 0:01:57]} 20. bxc4 {[%clk 0:02:03]}  dxc4 {[%clk 0:01:50]} 21. Bg2 {[%clk 0:02:02]}  Qd6 {[%clk 0:01:46]} 22. Qb2 {[%clk 0:01:59]}  Bd8 {[%clk 0:01:42]} 23. Qb4 {[%clk 0:01:41]}  Qxb4 {[%clk 0:01:38]} 24. Rxb4 {[%clk 0:01:41]}  Ng7 {[%clk 0:01:17]} 25. Ne5 {[%clk 0:01:36]}  Bxg2 {[%clk 0:01:16]} 26. Kxg2 {[%clk 0:01:37]}  Nf5 {[%clk 0:01:15]} 27. Rxc4 {[%clk 0:01:30]}  Rxc4 {[%clk 0:01:09]} 28. Nxc4 {[%clk 0:01:31]}  Re6 {[%clk 0:01:08]} 29. d5 {[%clk 0:01:17]}  Re7 {[%clk 0:01:07]} 30. d6 {[%clk 0:01:11]}  Re6 {[%clk 0:01:06]} 31. Rd1 {[%clk 0:01:08]}  Kf8 {[%clk 0:01:05]} 32. e4 {[%clk 0:01:07]}  Ng7 {[%clk 0:01:02]} 33. f4 {[%clk 0:01:01]}  b5 {[%clk 0:01:00]} 34. axb5 {[%clk 0:01:00]}  axb5 {[%clk 0:01:01]} 35. Nxb5 {[%clk 0:00:51]}  Rxe4 {[%clk 0:01:00]} 36. Ne5 {[%clk 0:00:45]}  Ne8 {[%clk 0:00:58]} 37. Kf3 {[%clk 0:00:41]}  Rb4 {[%clk 0:00:57]} 38. Rd5 {[%clk 0:00:37]}  Nf6 {[%clk 0:00:54]} 39. Rc5 {[%clk 0:00:36]}  Bb6 {[%clk 0:00:53]} 40. Rc8+ {[%clk 0:00:33]}  Kg7 {[%clk 0:00:52]} 41. Nc7 {[%clk 0:00:25]}  Rb3+ {[%clk 0:00:51]} 42. Ke2 {[%clk 0:00:25]}  Ne4 {[%clk 0:00:44]} 43. d7 {[%clk 0:00:23]}  Re3+ {[%clk 0:00:42]} 44. Kd1 {[%clk 0:00:23]}  Nf2+ {[%clk 0:00:31]} 45. Kc2 {[%clk 0:00:23]}  Re2+ {[%clk 0:00:31]} 46. Kb3 {[%clk 0:00:23]}  Re3+ {[%clk 0:00:31]} 47. Ka4 {[%clk 0:00:23]}  Re4+ {[%clk 0:00:30]} 48. Kb5 {[%clk 0:00:23]}  Bxc7 {[%clk 0:00:30]} 49. Rxc7 {[%clk 0:00:23]}  Rd4 {[%clk 0:00:31]} 50. Nc6 {[%clk 0:00:20]}  Rd5+ {[%clk 0:00:30]} 51. Kc4 {[%clk 0:00:19]}  Rxd7 {[%clk 0:00:28]} 52. Rxd7 {[%clk 0:00:19]}  Kf6 {[%clk 0:00:27]} 53. Ne5 {[%clk 0:00:19]}  g5 {[%clk 0:00:27]} 54. Rxf7+ {[%clk 0:00:18]}  Ke6 {[%clk 0:00:28]} 55. Rh7 {[%clk 0:00:18]}  gxf4 {[%clk 0:00:27]} 56. gxf4 {[%clk 0:00:18]}  Ng4 {[%clk 0:00:27]} 57. Nxg4 {[%clk 0:00:17]} 1-0


[Site "https://www.chess.com"]